[Event "Chessable Masters - Torneo preliminare"]
[White "Matinian, Nikita"]
[Black "Meier, Georg"]
[WhiteFideId "24129100"]
[BlackFideId "4675789"]
[WhiteElo "2326"]
[BlackElo "2624"]
[Result "1-0"]
[Round "1"]
[TimeControl "600+2"]
[Date "2023.03.13"]
[WhiteClock "0:01:42"]
[BlackClock "0:00:09"]

1. e4 {[%clk 0:10:00]}  e6 {[%clk 0:09:49]} 2. d4 {[%clk 0:10:01]}  d5 {[%clk 0:09:49]} 3. Nc3 {[%clk 0:10:02]}  dxe4 {[%clk 0:09:51]} 4. Nxe4 {[%clk 0:10:03]}  Nd7 {[%clk 0:09:53]} 5. Nf3 {[%clk 0:10:03]}  Ngf6 {[%clk 0:09:32]} 6. Nxf6+ {[%clk 0:10:04]}  Nxf6 {[%clk 0:09:27]} 7. Be3 {[%clk 0:09:29]}  Bd6 {[%clk 0:09:27]} 8. Bd3 {[%clk 0:09:06]}  O-O {[%clk 0:09:24]} 9. Qd2 {[%clk 0:09:07]}  b6 {[%clk 0:08:34]} 10. O-O-O {[%clk 0:09:05]}  Bb7 {[%clk 0:08:35]} 11. Ne5 {[%clk 0:09:06]}  Nd5 {[%clk 0:08:18]} 12. c4 {[%clk 0:08:44]}  Nxe3 {[%clk 0:08:09]} 13. Qxe3 {[%clk 0:08:45]}  c5 {[%clk 0:07:16]} 14. dxc5 {[%clk 0:08:42]}  bxc5 {[%clk 0:07:16]} 15. f4 {[%clk 0:08:16]}  h6 {[%clk 0:06:39]} 16. Rhg1 {[%clk 0:07:59]}  Qe7 {[%clk 0:05:22]} 17. g4 {[%clk 0:07:51]}  Bxe5 {[%clk 0:05:14]} 18. Qxe5 {[%clk 0:07:51]}  Rad8 {[%clk 0:05:11]} 19. g5 {[%clk 0:07:49]}  hxg5 {[%clk 0:05:11]} 20. Rxg5 {[%clk 0:07:22]}  f6 {[%clk 0:05:04]} 21. Qxc5 {[%clk 0:07:22]}  Rf7 {[%clk 0:04:00]} 22. Rh5 {[%clk 0:05:38]}  f5 {[%clk 0:03:20]} 23. Qxe7 {[%clk 0:05:09]}  Rxe7 {[%clk 0:03:22]} 24. Bc2 {[%clk 0:05:10]}  Rc8 {[%clk 0:03:11]} 25. Rd4 {[%clk 0:05:09]}  Kf7 {[%clk 0:03:08]} 26. Rh3 {[%clk 0:05:02]}  Kf6 {[%clk 0:03:08]} 27. b4 {[%clk 0:04:58]}  Bg2 {[%clk 0:02:52]} 28. Rg3 {[%clk 0:04:51]}  Bf1 {[%clk 0:02:53]} 29. c5 {[%clk 0:04:52]}  Rh8 {[%clk 0:02:47]} 30. Rd2 {[%clk 0:04:50]}  Rh4 {[%clk 0:02:42]} 31. Rf2 {[%clk 0:04:48]}  Bc4 {[%clk 0:02:38]} 32. Kb2 {[%clk 0:04:48]}  Bd5 {[%clk 0:02:34]} 33. a4 {[%clk 0:04:30]}  e5 {[%clk 0:02:19]} 34. fxe5+ {[%clk 0:04:31]}  Rxe5 {[%clk 0:02:21]} 35. b5 {[%clk 0:04:29]}  a6 {[%clk 0:01:01]} 36. bxa6 {[%clk 0:03:52]}  Rb4+ {[%clk 0:01:01]} 37. Ka3 {[%clk 0:03:28]}  Rc4 {[%clk 0:01:02]} 38. Rb3 {[%clk 0:02:37]}  Rxc5 {[%clk 0:00:50]} 39. Rb5 {[%clk 0:02:38]}  Rc7 {[%clk 0:00:07]} 40. Bxf5 {[%clk 0:02:30]}  Ke7 {[%clk 0:00:08]} 41. Rc2 {[%clk 0:01:51]}  Ra7 {[%clk 0:00:08]} 42. Bc8 {[%clk 0:01:51]}  Re3+ {[%clk 0:00:04]} 43. Kb4 {[%clk 0:01:53]}  Be4 {[%clk 0:00:05]} 44. Rcc5 {[%clk 0:01:45]}  Re1 {[%clk 0:00:04]} 45. Ka5 {[%clk 0:01:40]}  Bf3 {[%clk 0:00:03]} 46. Bb7 {[%clk 0:01:38]}  Re3 {[%clk 0:00:03]} 47. Re5+ {[%clk 0:01:38]}  Rxe5 {[%clk 0:00:04]} 48. Rxe5+ {[%clk 0:01:40]}  Kd6 {[%clk 0:00:05]} 49. Bxf3 {[%clk 0:01:37]}  Kxe5 {[%clk 0:00:06]} 50. Bb7 {[%clk 0:01:37]}  Kd6 {[%clk 0:00:06]} 51. Kb6 {[%clk 0:01:38]}  g5 {[%clk 0:00:07]} 52. Kxa7 {[%clk 0:01:40]}  Kc7 {[%clk 0:00:08]} 53. Bf3 {[%clk 0:01:41]}  g4 {[%clk 0:00:09]} 54. Bxg4 {[%clk 0:01:42]} 1-0


[Site "Internet"]

[Event "Chessable Masters - Torneo preliminare"]
[White "Bluebaum, Matthias"]
[Black "Sankalp, Gupta"]
[WhiteFideId "24651516"]
[BlackFideId "5097010"]
[WhiteElo "2601"]
[BlackElo "2427"]
[Result "1-0"]
[Round "1"]
[TimeControl "600+2"]
[Date "2023.03.13"]
[WhiteClock "0:07:47"]
[BlackClock "0:05:59"]

1. d4 {[%clk 0:10:01]}  Nf6 {[%clk 0:09:58]} 2. c4 {[%clk 0:10:03]}  e6 {[%clk 0:09:58]} 3. Nc3 {[%clk 0:10:04]}  Bb4 {[%clk 0:09:58]} 4. e3 {[%clk 0:10:05]}  O-O {[%clk 0:09:55]} 5. Bd2 {[%clk 0:10:07]}  d5 {[%clk 0:09:55]} 6. Nf3 {[%clk 0:10:08]}  b6 {[%clk 0:09:52]} 7. cxd5 {[%clk 0:10:07]}  exd5 {[%clk 0:09:52]} 8. Rc1 {[%clk 0:10:08]}  Bb7 {[%clk 0:09:16]} 9. Bd3 {[%clk 0:10:09]}  Re8 {[%clk 0:08:30]} 10. Ne5 {[%clk 0:10:06]}  c5 {[%clk 0:08:26]} 11. a3 {[%clk 0:10:03]}  cxd4 {[%clk 0:08:09]} 12. exd4 {[%clk 0:10:01]}  Bd6 {[%clk 0:08:07]} 13. O-O {[%clk 0:09:47]}  Bxe5 {[%clk 0:07:45]} 14. dxe5 {[%clk 0:09:46]}  Rxe5 {[%clk 0:07:47]} 15. Bf4 {[%clk 0:09:23]}  Re7 {[%clk 0:07:12]} 16. Nb5 {[%clk 0:09:05]}  Na6 {[%clk 0:07:13]} 17. b4 {[%clk 0:08:37]}  d4 {[%clk 0:07:12]} 18. Nd6 {[%clk 0:08:03]}  Qd7 {[%clk 0:05:59]} 19. Bb5 {[%clk 0:07:47]} 1-0


[Site "Internet"]

[Event "Chessable Masters - Torneo preliminare"]
[White "Steinberg, Nitzan"]
[Black "Mareco, Sandro"]
[WhiteFideId "2801795"]
[BlackFideId "112275"]
[WhiteElo "2500"]
[BlackElo "2541"]
[Result "1/2-1/2"]
[Round "1"]
[TimeControl "600+2"]
[Date "2023.03.13"]
[WhiteClock "0:00:35"]
[BlackClock "0:01:02"]

1. e4 {[%clk 0:10:00]}  e5 {[%clk 0:10:00]} 2. Nf3 {[%clk 0:10:01]}  Nc6 {[%clk 0:10:00]} 3. Bb5 {[%clk 0:10:02]}  a6 {[%clk 0:10:01]} 4. Ba4 {[%clk 0:10:03]}  Nge7 {[%clk 0:10:02]} 5. d4 {[%clk 0:09:53]}  exd4 {[%clk 0:09:58]} 6. Nxd4 {[%clk 0:09:52]}  Nxd4 {[%clk 0:09:57]} 7. Qxd4 {[%clk 0:09:53]}  Nc6 {[%clk 0:09:58]} 8. Qd1 {[%clk 0:09:43]}  Bc5 {[%clk 0:09:55]} 9. O-O {[%clk 0:09:41]}  O-O {[%clk 0:09:54]} 10. Nc3 {[%clk 0:09:38]}  d6 {[%clk 0:09:46]} 11. Bf4 {[%clk 0:09:25]}  b5 {[%clk 0:09:11]} 12. Bb3 {[%clk 0:09:26]}  Na5 {[%clk 0:09:12]} 13. Qd3 {[%clk 0:09:02]}  Bb7 {[%clk 0:08:58]} 14. Bd5 {[%clk 0:08:58]}  c6 {[%clk 0:08:49]} 15. Bb3 {[%clk 0:08:59]}  Qe7 {[%clk 0:08:46]} 16. Rad1 {[%clk 0:08:55]}  Rad8 {[%clk 0:08:44]} 17. Rfe1 {[%clk 0:08:56]}  Nxb3 {[%clk 0:08:36]} 18. axb3 {[%clk 0:08:56]}  f6 {[%clk 0:08:24]} 19. Qg3 {[%clk 0:08:46]}  Rd7 {[%clk 0:08:18]} 20. h4 {[%clk 0:08:43]}  Rfd8 {[%clk 0:07:56]} 21. Re2 {[%clk 0:08:25]}  Qf7 {[%clk 0:07:41]} 22. Red2 {[%clk 0:08:19]}  d5 {[%clk 0:07:42]} 23. e5 {[%clk 0:07:58]}  fxe5 {[%clk 0:07:37]} 24. Bxe5 {[%clk 0:07:58]}  Bf8 {[%clk 0:07:34]} 25. Rd4 {[%clk 0:07:01]}  c5 {[%clk 0:07:17]} 26. Rg4 {[%clk 0:06:18]}  d4 {[%clk 0:06:14]} 27. Ne4 {[%clk 0:06:11]}  Bxe4 {[%clk 0:06:14]} 28. Rxe4 {[%clk 0:06:11]}  d3 {[%clk 0:06:15]} 29. Rxd3 {[%clk 0:05:20]}  Rxd3 {[%clk 0:06:14]} 30. cxd3 {[%clk 0:05:22]}  Qxb3 {[%clk 0:06:13]} 31. Re3 {[%clk 0:04:30]}  Rd7 {[%clk 0:05:40]} 32. Qg4 {[%clk 0:03:57]}  Rf7 {[%clk 0:05:27]} 33. h5 {[%clk 0:03:50]}  h6 {[%clk 0:04:58]} 34. Rg3 {[%clk 0:02:53]}  Qc2 {[%clk 0:04:45]} 35. f4 {[%clk 0:02:52]}  c4 {[%clk 0:03:55]} 36. dxc4 {[%clk 0:02:53]}  bxc4 {[%clk 0:03:56]} 37. Kh2 {[%clk 0:02:48]}  Qf5 {[%clk 0:03:47]} 38. Kh3 {[%clk 0:02:33]}  Qb1 {[%clk 0:03:44]} 39. Kh2 {[%clk 0:02:28]}  Qf5 {[%clk 0:03:28]} 40. Qg6 {[%clk 0:02:29]}  Qc8 {[%clk 0:02:48]} 41. Qxh6 {[%clk 0:02:24]}  Qd8 {[%clk 0:02:10]} 42. Qg6 {[%clk 0:01:57]}  Rxf4 {[%clk 0:01:46]} 43. Qe6+ {[%clk 0:00:59]}  Rf7 {[%clk 0:01:43]} 44. h6 {[%clk 0:00:58]}  Qh4+ {[%clk 0:01:22]} 45. Rh3 {[%clk 0:00:56]}  Qe7 {[%clk 0:01:23]} 46. hxg7 {[%clk 0:00:37]}  Bxg7 {[%clk 0:01:21]} 47. Qc8+ {[%clk 0:00:36]}  Qf8 {[%clk 0:01:02]} 48. Qxf8+ {[%clk 0:00:35]}  Kxf8 {[%clk 0:01:02]} 49. Bxg7+ {[%clk 0:00:35]}  Kxg7 {[%clk 0:01:02]} 1/2-1/2


[Site "Internet"]

[Event "Chessable Masters - Torneo preliminare"]
[White "Kravtsiv, Martyn"]
[Black "Tregubov, Pavel V."]
[WhiteFideId "14113147"]
[BlackFideId "4115341"]
[WhiteElo "2675"]
[BlackElo "2522"]
[Result "1-0"]
[Round "1"]
[TimeControl "600+2"]
[Date "2023.03.13"]
[WhiteClock "0:00:45"]
[BlackClock "0:00:17"]

1. e4 {[%clk 0:10:00]}  e5 {[%clk 0:09:58]} 2. Nf3 {[%clk 0:10:00]}  Nf6 {[%clk 0:09:59]} 3. Nc3 {[%clk 0:09:59]}  Nc6 {[%clk 0:09:58]} 4. a4 {[%clk 0:09:57]}  a6 {[%clk 0:09:42]} 5. d4 {[%clk 0:09:56]}  exd4 {[%clk 0:09:38]} 6. Nxd4 {[%clk 0:09:57]}  Bb4 {[%clk 0:09:31]} 7. Nxc6 {[%clk 0:09:56]}  bxc6 {[%clk 0:09:31]} 8. Bd3 {[%clk 0:09:56]}  O-O {[%clk 0:09:31]} 9. O-O {[%clk 0:09:40]}  d5 {[%clk 0:09:31]} 10. Bd2 {[%clk 0:09:35]}  Rb8 {[%clk 0:09:31]} 11. Re1 {[%clk 0:09:15]}  Re8 {[%clk 0:09:31]} 12. h3 {[%clk 0:09:05]}  h6 {[%clk 0:09:09]} 13. b3 {[%clk 0:07:28]}  dxe4 {[%clk 0:07:38]} 14. Nxe4 {[%clk 0:07:21]}  Rxe4 {[%clk 0:07:11]} 15. Rxe4 {[%clk 0:05:47]}  Bxd2 {[%clk 0:07:06]} 16. Re2 {[%clk 0:05:20]}  Bg4 {[%clk 0:04:07]} 17. hxg4 {[%clk 0:04:57]}  Bc3 {[%clk 0:04:07]} 18. Rb1 {[%clk 0:04:56]}  Nxg4 {[%clk 0:04:08]} 19. Bf5 {[%clk 0:04:50]}  Qh4 {[%clk 0:04:04]} 20. Bxg4 {[%clk 0:04:50]}  Rd8 {[%clk 0:04:03]} 21. Qf1 {[%clk 0:04:04]}  Qxg4 {[%clk 0:04:02]} 22. Rd1 {[%clk 0:04:03]}  Rf8 {[%clk 0:02:37]} 23. Rd3 {[%clk 0:03:57]}  Bb4 {[%clk 0:02:32]} 24. Qd1 {[%clk 0:03:49]}  Bd6 {[%clk 0:02:26]} 25. Re1 {[%clk 0:02:46]}  Qf4 {[%clk 0:02:20]} 26. Qf3 {[%clk 0:01:48]}  Qh2+ {[%clk 0:02:06]} 27. Kf1 {[%clk 0:01:48]}  Qh1+ {[%clk 0:01:48]} 28. Ke2 {[%clk 0:01:49]}  Qh4 {[%clk 0:01:21]} 29. Qxc6 {[%clk 0:01:32]}  a5 {[%clk 0:01:16]} 30. Rh3 {[%clk 0:01:26]}  Qg4+ {[%clk 0:01:09]} 31. Kf1 {[%clk 0:01:27]}  Bb4 {[%clk 0:00:49]} 32. Qe4 {[%clk 0:01:08]}  Qd7 {[%clk 0:00:44]} 33. Rd3 {[%clk 0:01:03]}  Qc8 {[%clk 0:00:41]} 34. Re2 {[%clk 0:01:02]}  c5 {[%clk 0:00:41]} 35. Kg1 {[%clk 0:00:57]}  Qa6 {[%clk 0:00:36]} 36. Ree3 {[%clk 0:00:50]}  Qf6 {[%clk 0:00:33]} 37. Qe5 {[%clk 0:00:50]}  Qa6 {[%clk 0:00:20]} 38. Rg3 {[%clk 0:00:47]}  f6 {[%clk 0:00:17]} 39. Qe7 {[%clk 0:00:45]} 1-0


[Site "Internet"]

[Event "Chessable Masters - Torneo preliminare"]
[White "Darini, Pouria"]
[Black "Tabatabaei, M. Amin"]
[WhiteFideId "12502200"]
[BlackFideId "12521213"]
[WhiteElo "2573"]
[BlackElo "2558"]
[Result "1/2-1/2"]
[Round "1"]
[TimeControl "600+2"]
[Date "2023.03.13"]
[WhiteClock "0:00:21"]
[BlackClock "0:00:30"]

1. e4 {[%clk 0:09:59]}  e5 {[%clk 0:09:58]} 2. Nf3 {[%clk 0:09:54]}  Nc6 {[%clk 0:09:59]} 3. Bb5 {[%clk 0:09:49]}  a6 {[%clk 0:09:59]} 4. Ba4 {[%clk 0:09:50]}  Nf6 {[%clk 0:09:59]} 5. d3 {[%clk 0:09:45]}  Bc5 {[%clk 0:09:55]} 6. Bxc6 {[%clk 0:09:09]}  dxc6 {[%clk 0:09:56]} 7. O-O {[%clk 0:09:08]}  Nd7 {[%clk 0:09:47]} 8. Be3 {[%clk 0:08:58]}  Bd6 {[%clk 0:09:13]} 9. Nbd2 {[%clk 0:08:57]}  O-O {[%clk 0:09:14]} 10. Nc4 {[%clk 0:08:58]}  c5 {[%clk 0:09:01]} 11. a4 {[%clk 0:08:36]}  Re8 {[%clk 0:08:31]} 12. Nxd6 {[%clk 0:08:09]}  cxd6 {[%clk 0:08:33]} 13. Nd2 {[%clk 0:07:41]}  Nf8 {[%clk 0:08:07]} 14. f4 {[%clk 0:07:04]}  exf4 {[%clk 0:08:08]} 15. Bxf4 {[%clk 0:07:05]}  Ng6 {[%clk 0:08:02]} 16. Bg3 {[%clk 0:06:56]}  Be6 {[%clk 0:07:46]} 17. Qh5 {[%clk 0:06:07]}  f6 {[%clk 0:06:45]} 18. b3 {[%clk 0:05:50]}  d5 {[%clk 0:06:15]} 19. Rae1 {[%clk 0:05:40]}  Qd7 {[%clk 0:06:08]} 20. h3 {[%clk 0:05:32]}  b5 {[%clk 0:05:46]} 21. exd5 {[%clk 0:04:26]}  Bxd5 {[%clk 0:05:24]} 22. a5 {[%clk 0:03:11]}  Qc6 {[%clk 0:05:23]} 23. Re2 {[%clk 0:02:59]}  Rxe2 {[%clk 0:05:13]} 24. Qxe2 {[%clk 0:03:00]}  Re8 {[%clk 0:05:15]} 25. Qf2 {[%clk 0:02:57]}  b4 {[%clk 0:04:10]} 26. Nc4 {[%clk 0:02:14]}  h5 {[%clk 0:04:11]} 27. Nb6 {[%clk 0:01:30]}  Bf7 {[%clk 0:03:38]} 28. Re1 {[%clk 0:01:21]}  Nf8 {[%clk 0:02:39]} 29. Rxe8 {[%clk 0:01:18]}  Bxe8 {[%clk 0:02:40]} 30. Bf4 {[%clk 0:00:32]}  Ne6 {[%clk 0:02:32]} 31. Be3 {[%clk 0:00:34]}  Qd6 {[%clk 0:02:18]} 32. Nc4 {[%clk 0:00:22]}  Qd5 {[%clk 0:02:16]} 33. Qg3 {[%clk 0:00:15]}  Bc6 {[%clk 0:02:05]} 34. Nb6 {[%clk 0:00:16]}  Qf5 {[%clk 0:01:47]} 35. Qd6 {[%clk 0:00:15]}  Qe5 {[%clk 0:01:12]} 36. Qxe5 {[%clk 0:00:15]}  fxe5 {[%clk 0:01:14]} 37. Nc4 {[%clk 0:00:15]}  e4 {[%clk 0:01:13]} 38. Kf2 {[%clk 0:00:13]}  exd3 {[%clk 0:01:05]} 39. cxd3 {[%clk 0:00:15]}  Bd5 {[%clk 0:01:07]} 40. g3 {[%clk 0:00:16]}  Kf7 {[%clk 0:01:05]} 41. h4 {[%clk 0:00:17]}  Kf6 {[%clk 0:01:05]} 42. Ke2 {[%clk 0:00:15]}  Kf5 {[%clk 0:01:04]} 43. Kf2 {[%clk 0:00:16]}  Kf6 {[%clk 0:00:45]} 44. Ke2 {[%clk 0:00:16]}  Nd4+ {[%clk 0:00:35]} 45. Bxd4+ {[%clk 0:00:16]}  cxd4 {[%clk 0:00:37]} 46. Kf2 {[%clk 0:00:16]}  Ke6 {[%clk 0:00:35]} 47. Nd2 {[%clk 0:00:16]}  Kd6 {[%clk 0:00:27]} 48. Ke2 {[%clk 0:00:11]}  Kc6 {[%clk 0:00:26]} 49. Nf3 {[%clk 0:00:05]}  Kc5 {[%clk 0:00:25]} 50. Nd2 {[%clk 0:00:05]}  Kb5 {[%clk 0:00:25]} 51. Nc4 {[%clk 0:00:06]}  Kc6 {[%clk 0:00:16]} 52. Kd2 {[%clk 0:00:06]}  Kc5 {[%clk 0:00:08]} 53. Ke2 {[%clk 0:00:07]}  Kb5 {[%clk 0:00:06]} 54. Kd2 {[%clk 0:00:08]}  Kc6 {[%clk 0:00:07]} 55. Ke2 {[%clk 0:00:10]}  Kc7 {[%clk 0:00:09]} 56. Kd2 {[%clk 0:00:11]}  Kd8 {[%clk 0:00:09]} 57. Ke2 {[%clk 0:00:12]}  Ke7 {[%clk 0:00:11]} 58. Kd2 {[%clk 0:00:13]}  Ke6 {[%clk 0:00:11]} 59. Ke2 {[%clk 0:00:15]}  Kf5 {[%clk 0:00:12]} 60. Kf2 {[%clk 0:00:15]}  Be6 {[%clk 0:00:08]} 61. Nd2 {[%clk 0:00:16]}  Kg4 {[%clk 0:00:07]} 62. Nc4 {[%clk 0:00:14]}  Kh3 {[%clk 0:00:07]} 63. Nd2 {[%clk 0:00:14]}  Bf5 {[%clk 0:00:07]} 64. Nf3 {[%clk 0:00:09]}  Bxd3 {[%clk 0:00:06]} 65. Nxd4 {[%clk 0:00:10]}  Be4 {[%clk 0:00:06]} 66. Ke3 {[%clk 0:00:08]}  Bd5 {[%clk 0:00:06]} 67. Kf4 {[%clk 0:00:09]}  g6 {[%clk 0:00:07]} 68. Nc2 {[%clk 0:00:09]}  Bxb3 {[%clk 0:00:08]} 69. Nxb4 {[%clk 0:00:11]}  Bc4 {[%clk 0:00:09]} 70. Nc6 {[%clk 0:00:12]}  Ba2 {[%clk 0:00:06]} 71. Ne5 {[%clk 0:00:12]}  Bb1 {[%clk 0:00:07]} 72. Nd7 {[%clk 0:00:12]}  Bd3 {[%clk 0:00:07]} 73. Nc5 {[%clk 0:00:13]}  Bb5 {[%clk 0:00:08]} 74. Ne6 {[%clk 0:00:13]}  Bc4 {[%clk 0:00:08]} 75. Nf8 {[%clk 0:00:13]}  Bd3 {[%clk 0:00:09]} 76. Nd7 {[%clk 0:00:10]}  Kg2 {[%clk 0:00:10]} 77. Ne5 {[%clk 0:00:11]}  Bb1 {[%clk 0:00:10]} 78. g4 {[%clk 0:00:12]}  hxg4 {[%clk 0:00:12]} 79. Kxg4 {[%clk 0:00:13]}  Kh2 {[%clk 0:00:12]} 80. Kg5 {[%clk 0:00:10]}  Kh3 {[%clk 0:00:14]} 81. Nd7 {[%clk 0:00:07]}  Bd3 {[%clk 0:00:13]} 82. Nc5 {[%clk 0:00:09]}  Bb5 {[%clk 0:00:14]} 83. Ne4 {[%clk 0:00:08]}  Bc6 {[%clk 0:00:12]} 84. Nf6 {[%clk 0:00:09]}  Ba4 {[%clk 0:00:11]} 85. Nh7 {[%clk 0:00:10]}  Bc2 {[%clk 0:00:12]} 86. Nf8 {[%clk 0:00:11]}  Bd3 {[%clk 0:00:12]} 87. Nd7 {[%clk 0:00:13]}  Kg3 {[%clk 0:00:11]} 88. Nc5 {[%clk 0:00:12]}  Bb5 {[%clk 0:00:12]} 89. Kxg6 {[%clk 0:00:03]}  Kxh4 {[%clk 0:00:14]} 90. Kf6 {[%clk 0:00:05]}  Kh5 {[%clk 0:00:15]} 91. Ke5 {[%clk 0:00:07]}  Kg6 {[%clk 0:00:16]} 92. Kd6 {[%clk 0:00:09]}  Kf7 {[%clk 0:00:17]} 93. Kc7 {[%clk 0:00:10]}  Ke8 {[%clk 0:00:18]} 94. Kb7 {[%clk 0:00:12]}  Kd8 {[%clk 0:00:20]} 95. Nxa6 {[%clk 0:00:14]}  Bxa6+ {[%clk 0:00:21]} 96. Kxa6 {[%clk 0:00:15]}  Kc8 {[%clk 0:00:23]} 97. Ka7 {[%clk 0:00:17]}  Kc7 {[%clk 0:00:25]} 98. a6 {[%clk 0:00:16]}  Kc8 {[%clk 0:00:27]} 99. Kb6 {[%clk 0:00:18]}  Kb8 {[%clk 0:00:28]} 100. a7+ {[%clk 0:00:19]}  Ka8 {[%clk 0:00:30]} 101. Ka6 {[%clk 0:00:21]} 1/2-1/2


[Site "Internet"]

[Event "Chessable Masters - Torneo preliminare"]
[White "Ponkratov, Pavel"]
[Black "Flores, Diego"]
[WhiteFideId "4157800"]
[BlackFideId "108049"]
[WhiteElo "2586"]
[BlackElo "2598"]
[Result "1/2-1/2"]
[Round "1"]
[TimeControl "600+2"]
[Date "2023.03.13"]
[WhiteClock "0:03:49"]
[BlackClock "0:00:16"]

1. d4 {[%clk 0:10:01]}  Nf6 {[%clk 0:10:00]} 2. c4 {[%clk 0:10:01]}  e6 {[%clk 0:10:01]} 3. Nc3 {[%clk 0:10:02]}  d5 {[%clk 0:09:52]} 4. cxd5 {[%clk 0:10:03]}  exd5 {[%clk 0:09:53]} 5. Bg5 {[%clk 0:10:04]}  c6 {[%clk 0:09:53]} 6. e3 {[%clk 0:10:04]}  h6 {[%clk 0:09:54]} 7. Bh4 {[%clk 0:10:05]}  Be7 {[%clk 0:09:54]} 8. Bd3 {[%clk 0:10:06]}  O-O {[%clk 0:09:49]} 9. Nge2 {[%clk 0:10:07]}  Re8 {[%clk 0:09:46]} 10. O-O {[%clk 0:10:08]}  Nbd7 {[%clk 0:09:31]} 11. f3 {[%clk 0:10:07]}  b5 {[%clk 0:09:27]} 12. Rc1 {[%clk 0:10:03]}  Bb7 {[%clk 0:09:23]} 13. Bf2 {[%clk 0:09:52]}  Rc8 {[%clk 0:08:50]} 14. Ng3 {[%clk 0:09:44]}  b4 {[%clk 0:08:43]} 15. Nce2 {[%clk 0:09:33]}  c5 {[%clk 0:08:44]} 16. dxc5 {[%clk 0:09:33]}  Bxc5 {[%clk 0:08:25]} 17. Nf5 {[%clk 0:09:34]}  Ne5 {[%clk 0:07:55]} 18. Bb5 {[%clk 0:09:19]}  Re6 {[%clk 0:06:50]} 19. Ned4 {[%clk 0:09:17]}  Rb6 {[%clk 0:06:48]} 20. Be2 {[%clk 0:09:15]}  Qd7 {[%clk 0:06:28]} 21. g4 {[%clk 0:08:51]}  Nc4 {[%clk 0:05:40]} 22. b3 {[%clk 0:08:49]}  Nd6 {[%clk 0:05:41]} 23. Ng3 {[%clk 0:08:37]}  Ba6 {[%clk 0:05:11]} 24. Rc2 {[%clk 0:08:30]}  Bxd4 {[%clk 0:04:57]} 25. Rxc8+ {[%clk 0:08:24]}  Qxc8 {[%clk 0:04:49]} 26. Qxd4 {[%clk 0:08:25]}  Qc2 {[%clk 0:03:43]} 27. Bxa6 {[%clk 0:08:24]}  Rxa6 {[%clk 0:03:44]} 28. Qxb4 {[%clk 0:08:24]}  Qxa2 {[%clk 0:03:39]} 29. h4 {[%clk 0:08:12]}  Rb6 {[%clk 0:03:22]} 30. Qd4 {[%clk 0:08:01]}  Qxb3 {[%clk 0:02:54]} 31. Ra1 {[%clk 0:07:59]}  Nb5 {[%clk 0:02:40]} 32. Qc5 {[%clk 0:07:48]}  d4 {[%clk 0:02:24]} 33. g5 {[%clk 0:06:49]}  hxg5 {[%clk 0:02:10]} 34. hxg5 {[%clk 0:06:50]}  dxe3 {[%clk 0:01:33]} 35. Bxe3 {[%clk 0:06:49]}  Ne8 {[%clk 0:01:34]} 36. Nf5 {[%clk 0:06:23]}  Re6 {[%clk 0:01:01]} 37. Rc1 {[%clk 0:05:46]}  Nbd6 {[%clk 0:00:55]} 38. Nxd6 {[%clk 0:05:24]}  Nxd6 {[%clk 0:00:43]} 39. Kf2 {[%clk 0:05:17]}  Qb2+ {[%clk 0:00:17]} 40. Rc2 {[%clk 0:05:17]}  Qb1 {[%clk 0:00:14]} 41. Rc1 {[%clk 0:05:13]}  Qd3 {[%clk 0:00:13]} 42. Qxa7 {[%clk 0:05:04]}  Nf5 {[%clk 0:00:10]} 43. g6 {[%clk 0:04:42]}  Rxg6 {[%clk 0:00:06]} 44. Qb8+ {[%clk 0:04:32]}  Kh7 {[%clk 0:00:07]} 45. Qh2+ {[%clk 0:04:21]}  Nh6 {[%clk 0:00:08]} 46. Qf4 {[%clk 0:04:19]}  Qf5 {[%clk 0:00:08]} 47. Qxf5 {[%clk 0:04:14]}  Nxf5 {[%clk 0:00:10]} 48. Bf4 {[%clk 0:04:16]}  Re6 {[%clk 0:00:11]} 49. Rc7 {[%clk 0:04:16]}  Kg8 {[%clk 0:00:12]} 50. Rc8+ {[%clk 0:04:17]}  Kh7 {[%clk 0:00:13]} 51. Rc7 {[%clk 0:04:18]}  Kg6 {[%clk 0:00:15]} 52. Rc1 {[%clk 0:04:18]}  f6 {[%clk 0:00:16]} 53. Rc5 {[%clk 0:04:18]}  Nd4 {[%clk 0:00:17]} 54. Be3 {[%clk 0:04:18]}  Nf5 {[%clk 0:00:18]} 55. Bf4 {[%clk 0:04:19]}  Ra6 {[%clk 0:00:19]} 56. Kg2 {[%clk 0:04:17]}  Nh4+ {[%clk 0:00:17]} 57. Kg3 {[%clk 0:04:17]}  Nf5+ {[%clk 0:00:16]} 58. Kg4 {[%clk 0:04:17]}  Ra1 {[%clk 0:00:15]} 59. Kh3 {[%clk 0:04:13]}  Nd4 {[%clk 0:00:13]} 60. Rc3 {[%clk 0:03:59]}  Ne2 {[%clk 0:00:09]} 61. Rc4 {[%clk 0:04:00]}  Kf5 {[%clk 0:00:09]} 62. Bd6 {[%clk 0:03:58]}  Ra2 {[%clk 0:00:04]} 63. Bh2 {[%clk 0:03:56]}  g5 {[%clk 0:00:05]} 64. Rc5+ {[%clk 0:03:57]}  Kg6 {[%clk 0:00:06]} 65. Rc4 {[%clk 0:03:58]}  Ra3 {[%clk 0:00:06]} 66. Kg2 {[%clk 0:03:58]}  Nc3 {[%clk 0:00:06]} 67. Bd6 {[%clk 0:03:55]}  Ra2+ {[%clk 0:00:06]} 68. Kh3 {[%clk 0:03:55]}  Nd5 {[%clk 0:00:05]} 69. Rd4 {[%clk 0:03:52]}  Ne3 {[%clk 0:00:06]} 70. Rd3 {[%clk 0:03:52]}  Nf5 {[%clk 0:00:08]} 71. Bc7 {[%clk 0:03:51]}  Kh5 {[%clk 0:00:09]} 72. Bd8 {[%clk 0:03:43]}  Nh4 {[%clk 0:00:07]} 73. Bxf6 {[%clk 0:03:41]}  Ng6 {[%clk 0:00:08]} 74. Bxg5 {[%clk 0:03:37]}  Kxg5 {[%clk 0:00:10]} 75. Rd5+ {[%clk 0:03:38]}  Kf6 {[%clk 0:00:10]} 76. Kg3 {[%clk 0:03:38]}  Ra4 {[%clk 0:00:11]} 77. Rb5 {[%clk 0:03:38]}  Ne7 {[%clk 0:00:12]} 78. Rb6+ {[%clk 0:03:38]}  Kg5 {[%clk 0:00:13]} 79. Rb8 {[%clk 0:03:34]}  Nf5+ {[%clk 0:00:14]} 80. Kf2 {[%clk 0:03:35]}  Ra2+ {[%clk 0:00:15]} 81. Ke1 {[%clk 0:03:36]}  Kf4 {[%clk 0:00:16]} 82. Rf8 {[%clk 0:03:37]}  Ke3 {[%clk 0:00:17]} 83. Re8+ {[%clk 0:03:38]}  Kd3 {[%clk 0:00:18]} 84. Rd8+ {[%clk 0:03:39]}  Nd4 {[%clk 0:00:19]} 85. f4 {[%clk 0:03:40]}  Ke3 {[%clk 0:00:18]} 86. Re8+ {[%clk 0:03:41]}  Kxf4 {[%clk 0:00:17]} 87. Rf8+ {[%clk 0:03:42]}  Ke4 {[%clk 0:00:15]} 88. Re8+ {[%clk 0:03:43]}  Kd3 {[%clk 0:00:16]} 89. Rd8 {[%clk 0:03:44]}  Re2+ {[%clk 0:00:09]} 90. Kf1 {[%clk 0:03:44]}  Re7 {[%clk 0:00:10]} 91. Kf2 {[%clk 0:03:44]}  Rf7+ {[%clk 0:00:11]} 92. Kg3 {[%clk 0:03:44]}  Ke4 {[%clk 0:00:12]} 93. Re8+ {[%clk 0:03:45]}  Kd5 {[%clk 0:00:11]} 94. Rd8+ {[%clk 0:03:46]}  Ke4 {[%clk 0:00:13]} 95. Re8+ {[%clk 0:03:48]}  Kd5 {[%clk 0:00:14]} 96. Rd8+ {[%clk 0:03:49]}  Ke4 {[%clk 0:00:16]} 1/2-1/2


[Site "Internet"]